[Event "German Bundesliga 2023-24"]
[Site "Germany"]
[Date "2024.02.04"]
[Round "7.15"]
[White "Winterberg, Lukas"]
[Black "Reuker, Jari"]
[Result "1/2-1/2"]
[ECO "D38"]
[WhiteElo "2410"]
[BlackElo "2403"]
[Annotator "ChessBase"]
[PlyCount "62"]
[EventDate "2023.10.20"]
[EventType "team-tourn"]
[EventCountry "GER"]
[SourceTitle "playchess.com"]
[Source "ChessBase"]
[SourceQuality "1"]
[TimeControl "40/6000+30:3000+30"]

1. d4 {[%emt 0:00:03]} Nf6 {[%emt 0:00:07]} 2. Nf3 {[%emt 0:00:20]} d5 {[%emt 0:00:07]} 3. c4 {[%emt 0:00:16]} e6 {[%emt 0:00:07]} 4. Nc3 {[%emt 0:00:09]} Bb4 {[%emt 0:00:11]} 5. Bg5 {[%emt 0:00:34]} h6 {[%emt 0:00:18]} 6. Bxf6 {[%emt 0:00:09]} Qxf6 {[%emt 0:00:05]} 7. e3 {[%emt 0:00:21]} O-O {[%emt 0:00:08]} 8. Rc1 {[%emt 0:00:07]} dxc4 {[%emt 0:00:14]} 9. Bxc4 {[%emt 0:00:14]} c5 {[%emt 0:00:06]} 10. O-O {[%emt 0:00:19]} cxd4 {[%emt 0:00:23]} 11. Ne4 {[%emt 0:00:33]} Qe7 {[%emt 0:00:09]} 12. a3 {[%emt 0:00:25]} Ba5 {[%emt 0:00:16]} 13. Qxd4 {[%emt 0:00:17]} Rd8 {[%emt 0:02:21]} 14. Qc5 {[%emt 0:05:58]} Qxc5 {[%emt 0:00:09]} 15. Nxc5 {[%emt 0:00:13]} Nd7 {[%emt 0:00:25]} 16. Nb3 {[%emt 0:02:19]} Bb6 {[%emt 0:00:36]} 17. Rfd1 {[%emt 0:00:18]} Nf6 {[%emt 0:13:10]} 18. Rxd8+ {[%emt 0:17:01]} Bxd8 {[%emt 0:00:07]} 19. Nbd4 {[%emt 0:01:45]} a6 {[%emt 0:10:55]} 20. Ne5 {[%emt 0:04:16]} Bb6 {[%emt 0:39:35]} 21. Be2 {[%emt 0:15:30]} Bd7 {[%emt 0:03:40]} 22. Bf3 {[%emt 0:00:52]} Rb8 {[%emt 0:10:06]} 23. Rc3 {[%emt 0:01:36]} Be8 {[%emt 0:06:50]} 24. g3 {[%emt 0:05:10]} Kf8 {[%emt 0:03:39]} 25. b4 {[%emt 0:14:03]} Nd7 {[%emt 0:06:16]} 26. Nc4 {[%emt 0:05:05]} Bc7 {[%emt 0:01:18]} 27. Na5 {[%emt 0:00:36]} Bxa5 {[%emt 0:00:42]} 28. bxa5 {[%emt 0:00:02]} Ne5 {[%emt 0:00:47]} 29. Bg2 {[%emt 0:05:20]} b6 {[%emt 0:00:10]} 30. f4 {[%emt 0:02:17]} Nd7 {[%emt 0:00:55]} 31. axb6 {[%emt 0:11:51]} Rxb6 {[%emt 0:00:18]} 1/2-1/2

[Event "German Bundesliga 2023-24"]
[Site "Germany"]
[Date "2024.02.03"]
[Round "7.16"]
[White "Gungl, Theo"]
[Black "Sebastian, Dirk"]
[Result "1/2-1/2"]
[ECO "E60"]
[WhiteElo "2372"]
[BlackElo "2432"]
[Annotator "ChessBase"]
[PlyCount "53"]
[EventDate "2023.10.20"]
[EventType "team-tourn"]
[EventCountry "GER"]
[SourceTitle "playchess.com"]
[Source "ChessBase"]
[SourceQuality "1"]
[TimeControl "40/6000+30:3000+30"]

1. d4 {[%emt 0:00:02]} Nf6 {[%emt 0:00:15]} 2. c4 {[%emt 0:00:06]} g6 {[%emt 0:00:42]} 3. h4 {[%emt 0:01:00]} Bg7 {[%emt 0:01:34]} 4. Nc3 {[%emt 0:00:28]} Nc6 {[%emt 0:01:12]} 5. e4 {[%emt 0:01:34]} e5 {[%emt 0:00:49]} 6. d5 {[%emt 0:01:12]} Nd4 {[%emt 0:03:02]} 7. Nf3 {[%emt 0:01:03]} Nxf3+ {[%emt 0:16:36]} 8. Qxf3 {[%emt 0:00:08]} d6 {[%emt 0:03:15]} 9. Be2 {[%emt 0:05:35]} O-O {[%emt 0:12:10]} 10. Qd3 {[%emt 0:04:11]} c6 {[%emt 0:08:32]} 11. Be3 {[%emt 0:05:16]} cxd5 {[%emt 0:02:28]} 12. Nxd5 {[%emt 0:01:06]} Nxd5 {[%emt 0:10:14]} 13. Qxd5 {[%emt 0:01:29]} Be6 {[%emt 0:01:58]} 14. Qb5 {[%emt 0:10:15]} f5 {[%emt 0:05:47]} 15. f3 {[%emt 0:27:38]} fxe4 {[%emt 0:09:42]} 16. fxe4 {[%emt 0:00:02]} a6 {[%emt 0:01:46]} 17. Qb4 {[%emt 0:02:01]} Bf6 {[%emt 0:06:44]} 18. O-O-O {[%emt 0:04:58]} Be7 {[%emt 0:01:05]} 19. Qxb7 {[%emt 0:12:02]} Rb8 {[%emt 0:01:54]} 20. Qa7 {[%emt 0:01:59]} Qa5 {[%emt 0:05:08]} 21. a3 {[%emt 0:09:37]} Rfc8 {[%emt 0:07:13]} 22. Qxe7 {[%emt 0:08:33]} Bxc4 {[%emt 0:00:24]} 23. Bxc4+ {[%emt 0:00:19]} Rxc4+ {[%emt 0:00:04]} 24. Kb1 {[%emt 0:00:04]} Rxb2+ {[%emt 0:02:45]} 25. Kxb2 {[%emt 0:00:01]} Qc3+ {[%emt 0:00:14]} 26. Ka2 {[%emt 0:00:07]} Qc2+ {[%emt 0:00:06]} 27. Ka1 {[%emt 0:00:02]} 1/2-1/2

[Event "German Bundesliga 2023-24"]
[Site "Germany"]
[Date "2024.02.04"]
[Round "7.16"]
[White "Schulze, Lara"]
[Black "Ronge, Tim"]
[Result "1/2-1/2"]
[ECO "C55"]
[WhiteElo "2293"]
[BlackElo "2301"]
[Annotator "ChessBase"]
[PlyCount "69"]
[EventDate "2023.10.20"]
[EventType "team-tourn"]
[EventCountry "GER"]
[SourceTitle "playchess.com"]
[Source "ChessBase"]
[SourceQuality "1"]
[TimeControl "40/6000+30:3000+30"]

1. e4 {[%emt 0:00:03]} e5 {[%emt 0:00:05]} 2. Nf3 {[%emt 0:01:08]} Nc6 {[%emt 0:00:07]} 3. Bc4 {[%emt 0:00:04]} Nf6 {[%emt 0:00:05]} 4. d3 {[%emt 0:00:13]} h6 {[%emt 0:01:49]} 5. c3 {[%emt 0:01:00]} d6 {[%emt 0:00:06]} 6. O-O {[%emt 0:00:08]} g6 {[%emt 0:00:03]} 7. d4 {[%emt 0:09:07]} Qe7 {[%emt 0:00:54]} 8. Re1 {[%emt 0:03:18]} Bg7 {[%emt 0:00:45]} 9. a4 {[%emt 0:02:13]} a5 {[%emt 0:05:38]} 10. Nbd2 {[%emt 0:08:38]} O-O {[%emt 0:02:09]} 11. h3 {[%emt 0:05:49]} Kh8 {[%emt 0:04:44]} 12. Nf1 {[%emt 0:08:39]} Bd7 {[%emt 0:08:34]} 13. Ne3 {[%emt 0:13:44]} exd4 {[%emt 0:09:26]} 14. cxd4 {[%emt 0:07:59]} Rae8 {[%emt 0:04:07]} 15. Nd5 {[%emt 0:06:39]} Qd8 {[%emt 0:00:13]} 16. Nc3 {[%emt 0:00:15]} Nh7 {[%emt 0:13:27]} 17. Qb3 {[%emt 0:13:58]} Nxd4 {[%emt 0:06:37]} 18. Nxd4 {[%emt 0:01:40]} Bxd4 {[%emt 0:00:06]} 19. Be3 {[%emt 0:02:34]} Bxe3 {[%emt 0:02:06]} 20. Rxe3 {[%emt 0:00:02]} Ng5 {[%emt 0:08:52]} 21. Qxb7 {[%emt 0:01:54]} f5 {[%emt 0:06:41]} 22. exf5 {[%emt 0:01:53]} Rxe3 {[%emt 0:00:12]} 23. fxe3 {[%emt 0:00:01]} Bxf5 {[%emt 0:02:34]} 24. Rf1 {[%emt 0:02:31]} Re8 {[%emt 0:08:09]} 25. e4 {[%emt 0:07:19]} Nxe4 {[%emt 0:10:06]} 26. Nxe4 {[%emt 0:04:23]} Bxe4 {[%emt 0:00:04]} 27. Qa7 {[%emt 0:01:22]} d5 {[%emt 0:05:20]} 28. Bb5 {[%emt 0:05:45]} Rf8 {[%emt 0:05:10]} 29. Rxf8+ {[%emt 0:00:41]} Qxf8 {[%emt 0:00:05]} 30. Qxc7 {[%emt 0:00:27]} Qb4 {[%emt 0:00:51]} 31. Qe5+ {[%emt 0:00:44]} Kh7 {[%emt 0:01:22]} 32. Kh2 {[%emt 0:01:34]} Qd2 {[%emt 0:01:07]} 33. Qe7+ {[%emt 0:00:33]} Kg8 {[%emt 0:00:08]} 34. Qe8+ {[%emt 0:00:25]} Kg7 {[%emt 0:00:03]} 35. Qe7+ {[%emt 0:00:10]} 1/2-1/2

[Event "German Bundesliga 2023-24"]
[Site "Germany"]
[Date "2024.02.04"]
[Round "8.1"]
[White "Harikrishna, Pentala"]
[Black "Svane, Rasmus"]
[Result "1/2-1/2"]
[ECO "D33"]
[WhiteElo "2716"]
[BlackElo "2646"]
[Annotator "TA"]
[PlyCount "83"]
[EventDate "2023.10.20"]
[EventType "team-tourn"]
[EventCountry "GER"]
[SourceTitle "playchess.com"]
[Source "ChessBase"]
[SourceQuality "1"]
[TimeControl "40/6000+30:3000+30"]

{[%evp 11,83,30,28,7,22,10,19,14,17,0,0,2,31,6,10,5,14,2,12,0,8,11,19,0,12,0,11,0,0,0,0,0,0,-15,0,0,0,0,0,0,0,0,0,0,0,0,0,0,0,0,0,0,0,0,0,0,0,0,0,0,0,0,0,0,0,0,0,0,0,0,0,0,0,0]} 1. c4 {[%emt 0:00:04]} Nf6 {[%emt 0:01:07]} 2. Nc3 {[%emt 0:00:23]} c5 {[%emt 0:01:12]} 3. Nf3 {[%emt 0:01:27]} e6 {[%emt 0:00:19]} 4. g3 {[%emt 0:05:44]} d5 {[%emt 0:00:11]} 5. cxd5 {[%emt 0:00:06]} exd5 {[%emt 0:00:05]} 6. d4 {[%emt 0:00:12]} Nc6 {[%emt 0:00:05]} 7. a3 {[%emt 0:01:04]} cxd4 {[%emt 0:00:58]} 8. Nxd4 {[%emt 0:00:14]} Bc5 {[%emt 0:00:07]} 9. Be3 {[%emt 0:01:50] [#] Strongly threatening Nxc6.} Bb6 {[%emt 0:00:09]} 10. Bg2 {[%emt 0:02:21]} O-O {[%emt 0:25:02]} 11. O-O {[%emt 0:03:24]} Re8 {[%emt 0:02:29]} 12. Rc1 {[%emt 0:16:21]} Bg4 {[%emt 0:29:39] The position is equal.} 13. Nxc6 {[%emt 0:21:44]} bxc6 {[%emt 0:00:28]} 14. Bd4 {[%emt 0:00:11]} Rb8 {[%emt 0:09:46]} 15. Re1 {[%emt 0:21:11]} Bxd4 {[%emt 0:18:11]} 16. Qxd4 {[%emt 0:00:38]} Qa5 {[%emt 0:02:13][%cal Oc6c5]} 17. f3 {[%emt 0:08:52]} Be6 {[%emt 0:05:12][%cal Oc6c5]} 18. Na4 {[%emt 0:01:33]} Nd7 {[%emt 0:00:53]} 19. Red1 {[%emt 0:08:35]} Rec8 {[%emt 0:00:16]} 20. Nc5 {[%emt 0:01:27]} Nxc5 {[%emt 0:02:29]} 21. Rxc5 {[%emt 0:00:08]} Rb5 {[%emt 0:00:14]} 22. Rdc1 {[%emt 0:05:33]} Qb6 {[%emt 0:02:16]} 23. b4 {[%emt 0:04:43]} a5 {[%emt 0:00:35][%cal Ra5b4]} 24. e3 {[%emt 0:01:09]} axb4 {[%emt 0:01:15]} 25. Rxb5 {[%emt 0:00:47]} Qxb5 {[%emt 0:00:40]} 26. axb4 {[%emt 0:01:38]} Rb8 {[%emt 0:00:09][%cal Oe6d7]} 27. Bf1 {[%emt 0:00:48]} Qxb4 {[%emt 0:00:43]} 28. Qxb4 {[%emt 0:00:48]} Rxb4 {[%emt 0:00:05]} 29. Rxc6 $11 {[%emt 0:00:14][%mdl 4096] Endgame. KRB-KRB} Rb3 {[%emt 0:03:35]} 30. Kf2 {[%emt 0:00:30]} Rb2+ {[%emt 0:00:05]} 31. Be2 {[%emt 0:00:27]} h5 {[%emt 0:00:21]} 32. h4 {[%emt 0:01:08]} g6 {[%emt 0:00:28]} 33. Ke1 {[%emt 0:00:35]} Kg7 {[%emt 0:00:08]} 34. Rc1 {[%emt 0:00:51]} Rb3 {[%emt 0:02:01]} 35. Kf2 {[%emt 0:00:39]} Rb2 {[%emt 0:00:07]} 36. Rd1 {[%emt 0:00:22]} Kf6 {[%emt 0:00:59]} 37. Rd4 {[%emt 0:00:05]} Ke5 {[%emt 0:00:52]} 38. Ke1 {[%emt 0:00:21]} Rb1+ {[%emt 0:00:35]} 39. Bd1 {[%emt 0:00:22]} Rb2 {[%emt 0:03:06]} 40. f4+ {[%emt 0:00:59]} Kf6 {[%emt 0:00:32]} 41. Bf3 {[%emt 0:50:39]} Rb5 {[%emt 0:03:32]} 42. Rd2 {[%emt 0:00:00] A rather calm draw.   Weighted Error Value: White=0.05 (flawless) /Black=0.04 (flawless) .  Inaccurate:     	---       	Black=1      OK:         	White=14    	Black=14     Best:        	White=2     	---} 1/2-1/2

[Event "German Bundesliga 2023-24"]
[Site "Germany"]
[Date "2024.02.04"]
[Round "8.1"]
[White "Bluebaum, Matthias"]
[Black "Eljanov, Pavel"]
[Result "1/2-1/2"]
[ECO "D05"]
[WhiteElo "2668"]
[BlackElo "2695"]
[Annotator "TA"]
[PlyCount "91"]
[EventDate "2023.10.20"]
[EventType "team-tourn"]
[EventCountry "GER"]
[SourceTitle "playchess.com"]
[Source "ChessBase"]
[SourceQuality "1"]
[TimeControl "40/6000+30:3000+30"]

{[%evp 11,91,15,26,18,17,13,17,12,16,15,28,3,17,0,0,0,0,3,15,10,6,0,37,52,103,90,89,81,95,64,50,63,58,60,61,55,52,56,79,82,85,87,83,85,96,74,79,82,85,78,85,55,55,55,51,73,65,66,141,129,140,137,141,89,73,55,141,126,136,72,59,48,94,46,60,50,57,0,59,0,51,0]} 1. Nf3 {[%emt 0:00:05]} d5 {[%emt 0:00:26]} 2. e3 {[%emt 0:00:06]} c5 {[%emt 0:03:00]} 3. b3 {[%emt 0:00:33]} Nf6 {[%emt 0:01:03]} 4. Bb2 {[%emt 0:00:08]} e6 {[%emt 0:00:05]} 5. d4 {[%emt 0:04:48]} Nc6 {[%emt 0:01:16]} 6. Nbd2 {[%emt 0:01:18]} Bd6 {[%emt 0:09:18]} 7. dxc5 {[%emt 0:00:12]} Bxc5 {[%emt 0:00:06]} 8. a3 {[%emt 0:00:27]} a5 {[%emt 0:00:43]} 9. Bd3 {[%emt 0:05:27] The position is equal.} O-O {[%emt 0:01:51]} 10. O-O {[%emt 0:00:06]} b6 {[%emt 0:06:24]} 11. Qe2 {[%emt 0:06:05]} Bb7 {[%emt 0:02:11]} 12. Rfd1 {[%emt 0:02:24]} Qe7 {[%emt 0:03:14]} 13. c4 {[%emt 0:02:15]} Rad8 {[%emt 0:04:25]} 14. cxd5 {[%emt 0:04:00]} exd5 {[%emt 0:00:06]} 15. Nf1 {[%emt 0:03:19]} Ne4 {[%emt 0:07:13]} 16. Ng3 {[%emt 0:02:26]} Nxg3 {[%emt 0:13:24]} (16... f5 $5) 17. hxg3 {[%emt 0:03:17]} Bc8 {[%emt 0:03:55] [#]} (17... f6 $14) 18. Qc2 $1 $16 {[%emt 0:07:09]} g6 {[%emt 0:02:40]} 19. Bb5 {[%emt 0:05:17]} Na7 {[%emt 0:00:14]} 20. Be2 {[%emt 0:00:44][%cal Ob3b4] Black must now prevent b4!} Nc6 $1 {[%emt 0:02:40]} 21. Qc3 {[%emt 0:06:10]} f6 {[%emt 0:00:17]} (21... d4 22. Nxd4 Nxd4 23. Bc4 $11) 22. Rd2 {[%emt 0:06:08]} Be6 {[%emt 0:10:41]} 23. Rad1 {[%emt 0:03:54]} Kg7 {[%emt 0:09:22]} 24. Qc1 {[%emt 0:03:35]} h5 {[%emt 0:04:24]} 25. Bb5 {[%emt 0:03:28]} Na7 {[%emt 0:01:39]} 26. Bd3 {[%emt 0:00:12]} Nc6 {[%emt 0:04:05]} 27. Nh4 {[%emt 0:03:29]} Bf7 {[%emt 0:00:10]} 28. Qb1 {[%emt 0:00:43]} Qe8 {[%emt 0:00:44]} 29. Bb5 $36 {[%emt 0:01:26][%mdl 2048] Rc2 would now be deadly. Black is under strong pressure.} Qe6 {[%emt 0:01:22]} 30. Nf3 {[%emt 0:03:29] Hoping for Ng5.} Ne5 {[%emt 0:07:06]} 31. Be2 {[%emt 0:08:19]} Qe7 $1 {[%emt 0:02:26]} 32. Nxe5 {[%emt 0:07:49]} fxe5 {[%emt 0:00:04] [#]} 33. b4 $1 {[%emt 0:00:05]} axb4 {[%emt 0:02:23]} 34. axb4 {[%emt 0:00:02]} Bxb4 {[%emt 0:01:56] [#]} (34... Bd6 $14) 35. Bxe5+ $1 {[%emt 0:00:04][%mdl 512]} Qxe5 {[%emt 0:01:28]} (35... Kh6 36. Rc2) 36. Qxb4 {[%emt 0:00:02]} Qd6 {[%emt 0:02:03]} 37. Qd4+ {[%emt 0:03:01]} (37. Qb3 $142) 37... Qf6 {[%emt 0:00:06]} 38. Bf3 {[%emt 0:00:04]} Rd6 {[%emt 0:02:42]} ({Black should try} 38... Qxd4 $14 39. Rxd4 Rd6) 39. Qb4 {[%emt 0:01:53]} Rc6 {[%emt 0:01:18]} 40. Kh2 {[%emt 0:02:06] White is more active.} (40. Bxd5 $6 Bxd5 41. Rxd5 Qxf2+ 42. Kh2 Rf3 $11) (40. Qa3 $142) 40... Rc4 {[%emt 0:01:05]} 41. Qb2 {[%emt 0:53:44]} Rc5 {[%emt 0:04:19]} (41... Qxb2 $14 42. Rxb2 Rd8) 42. Rb1 {[%emt 0:00:00]} (42. Bxd5 $2 {loses.} Qxb2 43. Rxb2 Bxd5 $19 (43... Rxd5 $2 44. Ra1 $19)) (42. Qxf6+ Kxf6 43. Bxd5 Bxd5 44. Rxd5 Rxd5 45. Rxd5 Ke6) (42. Qb1 $16) 42... Rb8 {[%emt 0:02:48]} 43. Rd4 {[%emt 0:00:00]} Rc4 {[%emt 0:03:31]} 44. Rd2 {[%emt 0:00:00]} ({But not} 44. Bxd5 Rxd4 45. Bxf7 Rd3 $15) 44... Rc5 {[%emt 0:03:07]} 45. Rd4 {[%emt 0:00:00]} Rc4 $1 {[%emt 0:00:20]} 46. Rd2 {[%emt 0:00:00] Weighted Error Value: White=0.13 (very precise) /Black=0.10 (very precise) .  Mistake:       	White=4     	Black=4      Inaccurate:     	White=2     	Black=1      OK:         	White=15    	Black=16     Best:        	---       	Black=3      Strong:       	White=1     	Black=3      Brilliant:      	White=1     	---} ({Much weaker is} 46. Bxd5 Rxd4 47. Bxf7 Rd3 $15) ({Better is} 46. Rbd1 $14) 1/2-1/2

[Event "German Bundesliga 2023-24"]
[Site "Germany"]
[Date "2024.02.04"]
[Round "8.1"]
[White "Nisipeanu, Liviu-Dieter"]
[Black "Abasov, Nijat"]
[Result "1-0"]
[ECO "E53"]
[WhiteElo "2600"]
[BlackElo "2641"]
[Annotator "RC"]
[PlyCount "69"]
[EventDate "2023.10.20"]
[EventType "team-tourn"]
[EventCountry "GER"]
[SourceTitle "playchess.com"]
[Source "ChessBase"]
[SourceQuality "1"]
[TimeControl "40/6000+30:3000+30"]

1. d4 {[%emt 0:00:05]} Nf6 {[%emt 0:00:06]} 2. c4 {[%emt 0:00:04]} e6 {[%emt 0:00:08]} 3. Nc3 {[%emt 0:00:05]} Bb4 {[%emt 0:00:05]} 4. e3 {[%emt 0:00:05]} O-O {[%emt 0:00:25]} 5. Bd3 {[%emt 0:00:04]} d5 {[%emt 0:00:09]} 6. Nf3 {[%emt 0:00:05]} b6 {[%emt 0:01:06]} 7. cxd5 {[%emt 0:00:26]} exd5 {[%emt 0:00:11]} 8. O-O {[%emt 0:00:04]} c5 {[%emt 0:01:05]} 9. a3 {[%emt 0:07:02]} Bxc3 {[%emt 0:05:27]} 10. bxc3 {[%emt 0:00:05]} Ba6 {[%emt 0:00:07]} 11. dxc5 {[%emt 0:05:50]} bxc5 {[%emt 0:00:31]} 12. Bxa6 {[%emt 0:00:08]} Nxa6 {[%emt 0:00:05]} 13. c4 {[%emt 0:00:05]} Rb8 {[%emt 0:10:44]} 14. Qc2 {[%emt 0:04:49]} Qb6 {[%emt 0:01:17]} 15. cxd5 {[%emt 0:05:58]} Nxd5 {[%emt 0:00:09]} 16. e4 {[%emt 0:00:00]} Ndc7 {[%emt 0:07:15]} 17. Bf4 {[%emt 0:08:39]} Rfe8 {[%emt 0:01:04]} 18. Rab1 {[%emt 0:04:45]} Qa5 {[%emt 0:11:57]} 19. Ne5 {[%emt 0:09:09]} Rxb1 {[%emt 0:01:24]} 20. Rxb1 {[%emt 0:00:04]} Ne6 {[%emt 0:02:56]} 21. Nc6 {[%emt 0:10:24]} Nd4 {[%emt 0:05:45]} 22. Nxd4 {[%emt 0:00:47]} cxd4 {[%emt 0:00:07]} 23. Bd6 {[%emt 0:00:06]} Qc3 {[%emt 0:05:28]} 24. Qa4 {[%emt 0:04:04]} Qc8 {[%emt 0:16:53]} 25. Qxd4 {[%emt 0:00:11]} Qc6 {[%emt 0:00:03]} 26. e5 {[%emt 0:03:17]} Rc8 {[%emt 0:00:35]} 27. h3 {[%emt 0:01:17]} Qd7 {[%emt 0:00:06]} 28. Qb2 {[%emt 0:06:50]} Nc5 {[%emt 0:02:20]} 29. Bxc5 {[%emt 0:01:15]} Rxc5 {[%emt 0:00:07]} 30. Qd4 {[%emt 0:00:09]} Qc7 {[%emt 0:03:11]} 31. Qxc5 {[%emt 0:00:05]} Qxc5 {[%emt 0:00:04]} 32. Rb8+ {[%emt 0:00:05]} Qf8 {[%emt 0:00:04]} 33. Rxf8+ {[%emt 0:00:06]} Kxf8 {[%emt 0:00:02]} 34. f4 {[%emt 0:00:10]} Ke7 {[%emt 0:04:12]} 35. f5 {[%emt 0:00:19]} 1-0

[Event "German Bundesliga 2023-24"]
[Site "Germany"]
[Date "2024.02.04"]
[Round "8.1"]
[White "Kadric, Denis"]
[Black "Livaic, Leon"]
[Result "1/2-1/2"]
[ECO "B33"]
[WhiteElo "2579"]
[BlackElo "2549"]
[Annotator "RC"]
[PlyCount "66"]
[EventDate "2023.10.20"]
[EventType "team-tourn"]
[EventCountry "GER"]
[SourceTitle "playchess.com"]
[Source "ChessBase"]
[SourceQuality "1"]
[TimeControl "40/6000+30:3000+30"]

1. e4 {[%emt 0:00:03]} c5 {[%emt 0:00:49]} 2. Nf3 {[%emt 0:00:07]} e6 {[%emt 0:00:57]} 3. d4 {[%emt 0:00:29]} cxd4 {[%emt 0:00:07]} 4. Nxd4 {[%emt 0:00:03]} Nf6 {[%emt 0:00:08]} 5. Nc3 {[%emt 0:00:03]} Nc6 {[%emt 0:00:05]} 6. Ndb5 {[%emt 0:00:08]} d6 {[%emt 0:04:07]} 7. Bf4 {[%emt 0:00:07]} e5 {[%emt 0:00:06]} 8. Bg5 {[%emt 0:00:01]} a6 {[%emt 0:00:12]} 9. Na3 {[%emt 0:00:01]} b5 {[%emt 0:01:05]} 10. Nd5 {[%emt 0:04:38]} Be7 {[%emt 0:00:13]} 11. Bxf6 {[%emt 0:00:10]} Bxf6 {[%emt 0:00:05]} 12. c3 {[%emt 0:00:53]} Rb8 {[%emt 0:05:44]} 13. Nc2 {[%emt 0:00:18]} Bg5 {[%emt 0:03:58]} 14. a4 {[%emt 0:05:40]} bxa4 {[%emt 0:01:26]} 15. Ncb4 {[%emt 0:00:07]} Nxb4 {[%emt 0:00:57]} 16. cxb4 {[%emt 0:02:37]} O-O {[%emt 0:01:52]} 17. Rxa4 {[%emt 0:11:16]} a5 {[%emt 0:08:34]} 18. b5 {[%emt 0:00:15]} Bd7 {[%emt 0:02:16]} 19. Nc3 {[%emt 0:00:39]} d5 {[%emt 0:04:20]} 20. exd5 {[%emt 0:05:51]} f5 {[%emt 0:01:20]} 21. Be2 {[%emt 0:02:19]} e4 {[%emt 0:02:36]} 22. O-O {[%emt 0:00:06]} Bf4 {[%emt 0:04:35]} 23. Qb3 {[%emt 0:07:10]} Bd6 {[%emt 0:06:29]} 24. Rfa1 {[%emt 0:02:16]} h5 {[%emt 0:17:29]} 25. Rc4 {[%emt 0:12:10]} Qe7 {[%emt 0:06:34]} 26. Rxa5 {[%emt 0:01:03]} Qe5 {[%emt 0:02:14]} 27. g3 {[%emt 0:00:03]} h4 {[%emt 0:00:10]} 28. Ra7 {[%emt 0:05:50]} hxg3 {[%emt 0:01:04]} 29. hxg3 {[%emt 0:00:03]} Be8 {[%emt 0:10:05]} 30. Qa4 {[%emt 0:17:22]} Bg6 {[%emt 0:05:38]} 31. Rd7 {[%emt 0:06:54]} Be8 {[%emt 0:07:32]} 32. Ra7 {[%emt 0:00:59]} Bg6 {[%emt 0:02:29]} 33. Rd7 {[%emt 0:00:03]} Be8 {[%emt 0:01:20]} 1/2-1/2

[Event "German Bundesliga 2023-24"]
[Site "Germany"]
[Date "2024.02.04"]
[Round "8.2"]
[White "Svane, Frederik"]
[Black "Ragger, Markus"]
[Result "1-0"]
[ECO "C50"]
[WhiteElo "2626"]
[BlackElo "2615"]
[Annotator "RC"]
[PlyCount "105"]
[EventDate "2023.10.20"]
[EventType "team-tourn"]
[EventCountry "GER"]
[SourceTitle "playchess.com"]
[Source "ChessBase"]
[SourceQuality "1"]
[TimeControl "40/6000+30:3000+30"]

1. e4 {[%emt 0:00:09]} e5 {[%emt 0:00:06]} 2. Nf3 {[%emt 0:00:07]} Nc6 {[%emt 0:00:04]} 3. Bc4 {[%emt 0:00:07]} Bc5 {[%emt 0:00:06]} 4. d3 {[%emt 0:00:29]} Nf6 {[%emt 0:00:51]} 5. Nc3 {[%emt 0:00:08]} a6 {[%emt 0:01:59]} 6. a4 {[%emt 0:00:21]} d6 {[%emt 0:00:25]} 7. O-O {[%emt 0:00:54]} h6 {[%emt 0:01:50]} 8. Be3 {[%emt 0:00:37]} O-O {[%emt 0:00:22]} 9. Bxc5 {[%emt 0:03:08]} dxc5 {[%emt 0:02:43]} 10. Nd5 {[%emt 0:00:19]} Qd6 {[%emt 0:16:41]} 11. Ne3 {[%emt 0:02:54]} b6 {[%emt 0:07:21]} 12. Nh4 {[%emt 0:04:39]} Ne7 {[%emt 0:04:13]} 13. Ba2 {[%emt 0:13:43]} Be6 {[%emt 0:05:33]} 14. Nc4 {[%emt 0:01:40]} Bxc4 {[%emt 0:00:31]} 15. Bxc4 {[%emt 0:00:11]} Qd7 {[%emt 0:03:42]} 16. Qe2 {[%emt 0:06:40]} b5 {[%emt 0:10:25]} 17. Ba2 {[%emt 0:00:43]} Rab8 {[%emt 0:02:17]} 18. c3 {[%emt 0:12:28]} Rfd8 {[%emt 0:19:49]} 19. Rad1 {[%emt 0:06:34]} Qg4 {[%emt 0:03:29]} 20. Nf3 {[%emt 0:13:06]} Ng6 {[%emt 0:03:21]} 21. Qe3 {[%emt 0:00:17]} Nd7 {[%emt 0:01:55]} 22. h3 {[%emt 0:08:53]} Qf4 {[%emt 0:00:05]} 23. axb5 {[%emt 0:02:08]} axb5 {[%emt 0:00:13]} 24. Qe2 {[%emt 0:00:33]} Qf6 {[%emt 0:01:57]} 25. g3 {[%emt 0:00:19]} Ra8 {[%emt 0:01:37]} 26. Bd5 {[%emt 0:03:38]} c6 {[%emt 0:01:43]} 27. Bb3 {[%emt 0:00:05]} Nb6 {[%emt 0:05:18]} 28. Nh2 {[%emt 0:03:17]} Qe7 {[%emt 0:07:41]} 29. Ng4 {[%emt 0:00:45]} Rab8 {[%emt 0:00:22]} 30. Ne3 {[%emt 0:02:20]} Qf6 {[%emt 0:04:01]} 31. h4 {[%emt 0:01:11]} Nd7 {[%emt 0:00:47]} 32. h5 {[%emt 0:05:59]} Ne7 {[%emt 0:00:27]} 33. f4 {[%emt 0:00:56]} c4 {[%emt 0:00:02]} 34. dxc4 {[%emt 0:01:21]} exf4 {[%emt 0:00:52]} 35. gxf4 {[%emt 0:01:42]} Nc5 {[%emt 0:00:51]} 36. e5 {[%emt 0:02:04]} Qh4 {[%emt 0:00:27]} 37. Qf3 {[%emt 0:01:15]} f5 {[%emt 0:02:26]} 38. Ba2 {[%emt 0:07:20]} Rxd1 {[%emt 0:00:14]} 39. cxb5+ {[%emt 0:03:06]} Rd5 {[%emt 0:00:09]} 40. bxc6 {[%emt 0:02:34]} Rxb2 {[%emt 0:00:04]} 41. Bxd5+ {[%emt 0:03:14]} Nxd5 {[%emt 0:09:16]} 42. Qxd5+ {[%emt 0:00:41]} Kh7 {[%emt 0:00:02]} 43. Ng2 {[%emt 0:00:06]} Qe7 {[%emt 0:07:01]} 44. Qd6 {[%emt 0:09:26]} Qa7 {[%emt 0:00:07]} 45. Kh2 {[%emt 0:01:23]} Ne4 {[%emt 0:03:03]} 46. Qd7 {[%emt 0:05:04]} Rxg2+ {[%emt 0:05:03]} 47. Kxg2 {[%emt 0:00:19]} Qa2+ {[%emt 0:00:06]} 48. Kg1 {[%emt 0:01:24]} Ng3 {[%emt 0:00:05]} 49. Rf2 {[%emt 0:03:16]} Qb1+ {[%emt 0:00:32]} 50. Kg2 {[%emt 0:00:52]} Nxh5 {[%emt 0:02:20]} 51. c7 {[%emt 0:02:08]} Qe4+ {[%emt 0:07:00]} 52. Kh2 {[%emt 0:00:05]} Nxf4 {[%emt 0:00:04]} 53. Qd4 {[%emt 0:00:17]} 1-0